Workbook

Sheet Data List for BBQ
A1: BBQ
A2: Date of BBQ | C2: 2012-07-04
A3: Expected number of people | C3: 15
A4: Budget | C4: 300
A6: Description | B6: Category | C6: Quantity | D6: Unit Price | E6: Subtotal | F6: Tax Rate | G6: Total with Tax | H6: Assigned
A7: cupcakes | B7: snack | C7: 45 | D7: 2.99 | E7: =+C7*D7 -> 134.55 | F7: =+VLOOKUP(B7,TaxRates,3,0) -> 0.07 | G7: =ROUND(E7*F7+E7,2) -> 143.97 | H7: Greg
A8: pounds of chicken | B8: food | C8: 16 | D8: 3.99 | E8: 63.84 | F8: 0 | G8: 63.84 | H8: Brian
A9: pounds of beef | B9: food | C9: 10 | D9: 4.99 | E9: 49.9 | F9: 0 | G9: 49.9 | H9: Jonathan
A10: soda 6 packs | B10: beverage | C10: 6 | D10: 4.99 | E10: 29.94 | F10: 0.07 | G10: 32.04 | H10: Greg
A11: large watermelon | B11: food | C11: 3 | D11: 6.99 | E11: 20.97 | F11: 0 | G11: 20.97 | H11: Brian
A12: corn by ear | B12: food | C12: 30 | D12: 0.6 | E12: 18 | F12: 0 | G12: 18 | H12: Jonathan
A13: paper plates 50 ct | B13: supplies | C13: 2 | D13: 6.99 | E13: 13.98 | F13: 0.07 | G13: 14.96 | H13: Jonathan
A14: assorted utensils 100 ct | B14: supplies | C14: 2 | D14: 6.99 | E14: 13.98 | F14: 0.07 | G14: 14.96 | H14: Brian
A15: tortilla chips large bag | B15: snack | C15: 2 | D15: 5.99 | E15: 11.98 | F15: 0.07 | G15: 12.82 | H15: Jonathan
A16: ketchup 12 oz. | B16: food | C16: 3 | D16: 2.99 | E16: 8.97 | F16: 0 | G16: 8.97 | H16: Jonathan
A17: potato chips large bag | B17: snack | C17: 2 | D17: 3.99 | E17: 7.98 | F17: 0.07 | G17: 8.54 | H17: Brian
A18: cups 50 ct | B18: supplies | C18: 2 | D18: 3.99 | E18: 7.98 | F18: 0.07 | G18: 8.54 | H18: Jonathan
A19: hot dog 12 pack | B19: food | C19: 2 | D19: 3.99 | E19: 7.98 | F19: 0 | G19: 7.98 | H19: Greg
A20: buns 12 pack | B20: food | C20: 4 | D20: 1.99 | E20: 7.96 | F20: 0 | G20: 7.96 | H20: Brian
A21: pickles large jar | B21: snack | C21: 1 | D21: 6.99 | E21: 6.99 | F21: 0.07 | G21: 7.48 | H21: Jonathan
A22: napkins 200 ct | B22: supplies | C22: 2 | D22: 2.59 | E22: 5.18 | F22: 0.07 | G22: 5.54 | H22: Greg
A23: mustard 12 oz. | B23: food | C23: 2 | D23: 1.99 | E23: 3.98 | F23: 0 | G23: 3.98 | H23: Brian
F25: total | G25: =SUM(G7:G24) -> 430.45
F26: Note: CTL + SHIFT + Enter is needed to calculate following formulas with ARRAYS:
F27: tally using nested sum and if | G27: =SUM(IF(G7:G23>10,1,0)) -> 9
F28: adding using nested sum and if | G28: =SUM(IF(G7:G23>0,G7:G23,0)*IF(B7:B23="food",1,0)) -> 181.6

Sheet Pivot table and chart
A1: Sum of Total with Tax | B1: Column Labels
A2: Row Labels | B2: Brian | C2: Greg | D2: Jonathan | E2: Grand Total
A3: cupcakes | C3: 79.98 | E3: 79.98
A4: pounds of chicken | B4: 63.84 | E4: 63.84
A5: pounds of beef | D5: 49.9 | E5: 49.9
A6: soda 6 packs | C6: 32.04 | E6: 32.04
A7: large watermelon | B7: 20.97 | E7: 20.97
A8: corn by ear | D8: 18 | E8: 18
A9: paper plates 50 ct | D9: 14.96 | E9: 14.96
A10: assorted utensils 100 ct | B10: 14.96 | E10: 14.96
A11: tortilla chips large bag | D11: 12.82 | E11: 12.82
A12: ketchup 12 oz. | D12: 8.97 | E12: 8.97
A13: cups 50 ct | D13: 8.54 | E13: 8.54
A14: potato chips large bag | B14: 8.54 | E14: 8.54
A15: hot dog 12 pack | C15: 7.98 | E15: 7.98
A16: buns 12 pack | B16: 7.96 | E16: 7.96
A17: pickles large jar | D17: 7.48 | E17: 7.48
A18: napkins 200 ct | C18: 5.54 | E18: 5.54
A19: mustard 12 oz. | B19: 3.98 | E19: 3.98
A20: Grand Total | B20: 120.25 | C20: 125.54 | D20: 120.67 | E20: 366.46

Sheet Data List for BBQ (2)
A1: BBQ
A2: Date of BBQ
A3: Expected number of people
A4: Budget
A6: Description | B6: Category | C6: Quantity | D6: Unit Price | E6: Subtotal | F6: Tax Rate | G6: Total with Tax | H6: Assigned
A7: cupcakes | B7: snack | C7: 35 | D7: 2.99 | E7: =+C7*D7 -> 104.65 | F7: =+VLOOKUP(B7,TaxRates,3,0) -> 0.07 | G7: =ROUND(E7*F7+E7,2) -> 111.98 | H7: Greg
A8: pounds of chicken | B8: food | C8: 16 | D8: 3.99 | E8: 63.84 | F8: 0 | G8: 63.84 | H8: Brian
A9: pounds of beef | B9: food | C9: 10 | D9: 4.99 | E9: 49.9 | F9: 0 | G9: 49.9 | H9: Jonathan
A10: soda 6 packs | B10: beverage | C10: 6 | D10: 4.99 | E10: 29.94 | F10: 0.07 | G10: 32.04 | H10: Greg
A11: large watermelon | B11: food | C11: 3 | D11: 6.99 | E11: 20.97 | F11: 0 | G11: 20.97 | H11: Brian
A12: corn by ear | B12: food | C12: 30 | D12: 0.6 | E12: 18 | F12: 0 | G12: 18 | H12: Jonathan
A13: paper plates 50 ct | B13: supplies | C13: 2 | D13: 6.99 | E13: 13.98 | F13: 0.07 | G13: 14.96 | H13: Jonathan
A14: assorted utensils 100 ct | B14: supplies | C14: 2 | D14: 6.99 | E14: 13.98 | F14: 0.07 | G14: 14.96 | H14: Brian
A15: tortilla chips large bag | B15: snack | C15: 2 | D15: 5.99 | E15: 11.98 | F15: 0.07 | G15: 12.82 | H15: Jonathan
A16: ketchup 12 oz. | B16: food | C16: 3 | D16: 2.99 | E16: 8.97 | F16: 0 | G16: 8.97 | H16: Jonathan
A17: potato chips large bag | B17: snack | C17: 2 | D17: 3.99 | E17: 7.98 | F17: 0.07 | G17: 8.54 | H17: Brian
A18: cups 50 ct | B18: supplies | C18: 2 | D18: 3.99 | E18: 7.98 | F18: 0.07 | G18: 8.54 | H18: Jonathan
A19: hot dog 12 pack | B19: food | C19: 2 | D19: 3.99 | E19: 7.98 | F19: 0 | G19: 7.98 | H19: Greg
A20: buns 12 pack | B20: food | C20: 4 | D20: 1.99 | E20: 7.96 | F20: 0 | G20: 7.96 | H20: Brian
A21: pickles large jar | B21: snack | C21: 1 | D21: 6.99 | E21: 6.99 | F21: 0.07 | G21: 7.48 | H21: Jonathan
A22: napkins 200 ct | B22: supplies | C22: 2 | D22: 2.59 | E22: 5.18 | F22: 0.07 | G22: 5.54 | H22: Greg
A23: mustard 12 oz. | B23: food | C23: 2 | D23: 1.99 | E23: 3.98 | F23: 0 | G23: 3.98 | H23: Brian
F25: total | G25: =SUM(G7:G24) -> 398.46
G27: =SUM(IF(G7:G23>0,1,0)) -> 17
G28: =SUM(IF(G7:G23>0,G7:G23,0)*IF(B7:B23="food",1,0)) -> 181.6

Sheet Data List for BBQ (3)
A1: BBQ
A2: Date of BBQ
A3: Expected number of people
A4: Budget
A6: Description | B6: Category | C6: Quantity | D6: Unit Price | E6: Subtotal | F6: Tax Rate | G6: Total with Tax | H6: Assigned
A7: cupcakes | B7: snack | C7: 25 | D7: 2.99 | E7: =+C7*D7 -> 74.75 | F7: =+VLOOKUP(B7,TaxRates,3,0) -> 0.07 | G7: =ROUND(E7*F7+E7,2) -> 79.98 | H7: Greg
A8: pounds of chicken | B8: food | C8: 16 | D8: 3.99 | E8: 63.84 | F8: 0 | G8: 63.84 | H8: Brian
A9: pounds of beef | B9: food | C9: 10 | D9: 4.99 | E9: 49.9 | F9: 0 | G9: 49.9 | H9: Jonathan
A10: soda 6 packs | B10: beverage | C10: 6 | D10: 4.99 | E10: 29.94 | F10: 0.07 | G10: 32.04 | H10: Greg
A11: large watermelon | B11: food | C11: 3 | D11: 6.99 | E11: 20.97 | F11: 0 | G11: 20.97 | H11: Brian
A12: corn by ear | B12: food | C12: 30 | D12: 0.6 | E12: 18 | F12: 0 | G12: 18 | H12: Jonathan
A13: paper plates 50 ct | B13: supplies | C13: 2 | D13: 6.99 | E13: 13.98 | F13: 0.07 | G13: 14.96 | H13: Jonathan
A14: assorted utensils 100 ct | B14: supplies | C14: 2 | D14: 6.99 | E14: 13.98 | F14: 0.07 | G14: 14.96 | H14: Brian
A15: tortilla chips large bag | B15: snack | C15: 2 | D15: 5.99 | E15: 11.98 | F15: 0.07 | G15: 12.82 | H15: Jonathan
A16: ketchup 12 oz. | B16: food | C16: 3 | D16: 2.99 | E16: 8.97 | F16: 0 | G16: 8.97 | H16: Jonathan
A17: potato chips large bag | B17: snack | C17: 2 | D17: 3.99 | E17: 7.98 | F17: 0.07 | G17: 8.54 | H17: Brian
A18: cups 50 ct | B18: supplies | C18: 2 | D18: 3.99 | E18: 7.98 | F18: 0.07 | G18: 8.54 | H18: Jonathan
A19: hot dog 12 pack | B19: food | C19: 2 | D19: 3.99 | E19: 7.98 | F19: 0 | G19: 7.98 | H19: Greg
A20: buns 12 pack | B20: food | C20: 4 | D20: 1.99 | E20: 7.96 | F20: 0 | G20: 7.96 | H20: Brian
A21: pickles large jar | B21: snack | C21: 1 | D21: 6.99 | E21: 6.99 | F21: 0.07 | G21: 7.48 | H21: Jonathan
A22: napkins 200 ct | B22: supplies | C22: 2 | D22: 2.59 | E22: 5.18 | F22: 0.07 | G22: 5.54 | H22: Greg
A23: mustard 12 oz. | B23: food | C23: 2 | D23: 1.99 | E23: 3.98 | F23: 0 | G23: 3.98 | H23: Brian
F25: total | G25: =SUM(G7:G24) -> 366.46
G27: =SUM(IF(G7:G23>0,1,0)) -> 17
G28: =SUM(IF(G7:G23>0,G7:G23,0)*IF(B7:B23="food",1,0)) -> 181.6

Sheet Tax Rates
A1: Category | B1: NY rate | C1: NJ rate
A2: beverage | B2: 0.09 | C2: 0.07
A3: food | B3: 0 | C3: 0
A4: snack | B4: 0.09 | C4: 0.07
A5: supplies | B5: 0.09 | C5: 0.07

Sheet VBA example
A1: Create our own excel function "Sum of Square Numbers"
A3: End Value | B3: Total
A4: 1 | B4: =SumofSquares(A4) -> 1
A5: 2 | B5: =SumofSquares(A5) -> 5
A6: 3 | B6: 14
A8: 100 | B8: =SumofSquares(A8)*IF(SumofSquares(A8)<1000000,1,0) -> 338350
A9: 101 | B9: 348551
A10: 102 | B10: 358955
A11: 103 | B11: 369564
A12: 104 | B12: 380380
A13: 105 | B13: 391405
A14: 106 | B14: 402641
A15: 107 | B15: 414090
A16: 108 | B16: 425754
A17: 109 | B17: 437635
A18: 110 | B18: 449735
A19: 111 | B19: 462056
A20: 112 | B20: 474600
A21: 113 | B21: 487369
A22: 114 | B22: 500365
A23: 115 | B23: 513590
A24: 116 | B24: 527046
A25: 117 | B25: 540735
A26: 118 | B26: 554659
A27: 119 | B27: 568820
A28: 120 | B28: 583220
A29: 121 | B29: 597861
A30: 122 | B30: 612745
A31: 123 | B31: 627874
A32: 124 | B32: 643250
A33: 125 | B33: 658875
A34: 126 | B34: 674751
A35: 127 | B35: 690880
A36: 128 | B36: 707264
A37: 129 | B37: 723905
A38: 130 | B38: 740805
A39: 131 | B39: 757966
A40: 132 | B40: =SumofSquares(A40)*IF(SumofSquares(A40)<1000000,1,0) -> 775390
A41: 133 | B41: 793079
A42: 134 | B42: 811035
A43: 135 | B43: 829260
A44: 136 | B44: 847756
A45: 137 | B45: 866525
A46: 138 | B46: 885569
A47: 139 | B47: 904890
A48: 140 | B48: 924490
A49: 141 | B49: 944371
A50: 142 | B50: 964535
A51: 143 | B51: 984984
A52: 144 | B52: 0
A53: 145 | B53: 0
A54: 146 | B54: 0
A55: 147 | B55: 0
A56: 148 | B56: 0
A57: 149 | B57: 0
A58: 150 | B58: 0
A59: 151 | B59: 0
A60: 152 | B60: 0

Sheet Record Macro Example
A2: Saturday
A3: Monday
A4: Tuesday | L4: Saturday
A5: Wednesday | F5: Saturday | G5: Sunday | L5: Monday
A6: Thursday | F6: Monday | G6: Monday | L6: Tuesday
A7: Friday | F7: Tuesday | G7: Tuesday | I7: Saturday | L7: Wednesday
A8: Saturday | F8: Wednesday | G8: Wednesday | I8: Monday | L8: Thursday
A9: Sunday | F9: Thursday | G9: Thursday | I9: Tuesday | L9: Friday
F10: Friday | G10: Friday | I10: Wednesday | L10: Saturday
F11: Saturday | G11: Saturday | I11: Thursday | L11: Sunday
F12: Sunday | I12: Friday
I13: Saturday
I14: Sunday

Sheet Total Summary
A1: Year | B1: Total
A2: 2012 | B2: =BBQTotal -> 430.45
A3: 2011 | B3: =BBQTotal2011 -> 398.46
A4: 2010 | B4: =BBQTotal2010 -> 366.46

Sheet Budget
A2: 2013-07-01 | B2: ='Total Summary'!B2 -> 430.45 | C2: =BBQTotal*1.1 -> 473.495
C4: =HistoricalSummary -> Year | D4: Total
C5: 2012 | D5: 430.45
C6: 2011 | D6: 398.46
C7: 2010 | D7: 366.46
